bitfinex-derivatives/quotes_BTCF0:USTF0_20250325
["timestamp","ask_amount","ask_price","bid_price","bid_amount"]
[1742940964116,0.6916221,87661.0,87660.0,0.29477775]
[1742940965207,0.70333124,87661.0,87660.0,0.29477775]
[1742940965412,0.48825124,87661.0,87660.0,0.47099571]
[1742940965606,0.36248,87661.0,87660.0,0.58505911]
[1742940965807,0.4765421,87661.0,87660.0,0.47099571]
[1742940966220,0.4765421,87661.0,87660.0,0.58505911]
[1742940966516,0.36248,87661.0,87660.0,0.58505911]
[1742940966713,0.36202371,87661.0,87660.0,0.58505911]
[1742940966908,0.36302371,87661.0,87660.0,0.68635911]
[1742940967104,0.47708581,87661.0,87660.0,0.57229571]
[1742940967308,0.36302371,87661.0,87660.0,0.68635911]
[1742940967515,0.47708581,87661.0,87660.0,0.68635911]
[1742940967907,0.47708581,87661.0,87660.0,0.57229571]
[1742940968106,0.36302371,87661.0,87660.0,0.68635911]
[1742940968312,0.47708581,87661.0,87660.0,0.57229571]
[1742940968716,0.47708581,87661.0,87660.0,0.57204785]
[1742940969113,0.47708581,87661.0,87660.0,0.57164785]
[1742940970213,0.47708581,87661.0,87660.0,0.68571125]
[1742940970413,0.47708581,87661.0,87660.0,0.57164785]
[1742940970813,0.47708581,87661.0,87660.0,0.57165011]
[1742940971214,0.58368581,87661.0,87660.0,0.57165011]
[1742940971726,0.58322952,87661.0,87660.0,0.57165011]
[1742940972723,0.58322952,87661.0,87660.0,0.57162106]
[1742940974127,0.58322952,87661.0,87660.0,0.57122106]
[1742940974430,0.58322952,87661.0,87660.0,0.68528446]
[1742940974818,0.58322952,87661.0,87660.0,0.57122106]
[1742940975218,0.58322952,87661.0,87660.0,0.68528446]
[1742940976630,0.58277323,87661.0,87660.0,0.68528446]
[1742940977827,0.58277323,87661.0,87660.0,0.57122106]
[1742940978025,0.58277323,87661.0,87660.0,0.68528446]
[1742940978420,0.58277323,87661.0,87660.0,0.57122106]
[1742940978927,0.58277323,87661.0,87660.0,0.57082106]
[1742940979116,0.63637323,87661.0,87660.0,0.57082106]
[1742940979316,0.63637323,87661.0,87660.0,0.46952106]
[1742940979634,0.58277323,87661.0,87660.0,0.0949031]
[1742940979929,0.63437323,87661.0,87660.0,0.08]
[1742940980426,0.63437323,87661.0,87660.0,0.09499494]
[1742940980634,0.63437323,87661.0,87660.0,0.08]
[1742940981234,0.0570361,87654.0,87647.0,0.10745637]
[1742940981427,0.47442271,87648.0,87647.0,0.54367433]
[1742940981731,0.47602271,87648.0,87647.0,0.50393841]
[1742940982130,0.47602271,87648.0,87647.0,0.45173841]
[1742940982325,0.58212271,87648.0,87647.0,0.45173841]
[1742940983326,0.58312271,87648.0,87647.0,0.45173841]
[1742940983537,0.58312271,87648.0,87647.0,0.27552045]
[1742940983736,0.59452372,87648.0,87647.0,0.27552045]
[1742940984536,0.59452372,87648.0,87647.0,0.26552045]
[1742940984928,0.59452372,87648.0,87647.0,0.2655607]
[1742940985128,0.59452372,87648.0,87647.0,0.25045637]
[1742940986127,0.59452372,87648.0,87647.0,0.26511071]
[1742940987441,1.00212372,87648.0,87647.0,0.08292741]
[1742940987825,1.11224372,87648.0,87647.0,0.08292741]
[1742940988027,1.00212372,87648.0,87647.0,0.08292741]
[1742940988232,1.11224372,87648.0,87647.0,0.09810367]
[1742940989138,1.11224372,87648.0,87647.0,0.09770367]
[1742940989336,1.11224372,87648.0,87647.0,0.08304933]
[1742940989638,1.00212372,87648.0,87647.0,0.08304933]
[1742940989839,1.11224372,87648.0,87647.0,0.08304933]
[1742940990640,1.11224372,87648.0,87647.0,0.06787307]
[1742940990833,1.11224372,87648.0,87647.0,0.08290268]
[1742940991039,1.11224372,87648.0,87647.0,0.0829027]
[1742940991338,1.11224372,87648.0,87647.0,0.04141873]
[1742940991543,0.11363043,87642.0,87641.0,8e-05]
[1742940991750,0.47611043,87642.0,87641.0,0.42114469]
[1742940991931,0.36248,87642.0,87641.0,0.42106469]
[1742940992134,0.4765668,87642.0,87641.0,0.42106469]
[1742940992442,0.6382868,87642.0,87641.0,0.42106469]
[1742940992655,0.6883868,87642.0,87641.0,0.42106469]
[1742940992940,0.6893868,87642.0,87641.0,0.42106469]
[1742940993637,0.5792668,87642.0,87641.0,0.42106469]
[1742940993940,0.36348,87642.0,87641.0,0.53475279]
[1742940994241,0.1167668,87642.0,87641.0,0.53475279]
[1742940994732,0.1167668,87642.0,87641.0,0.47056469]
[1742940995431,0.1167668,87642.0,87641.0,0.50971796]
[1742940995634,0.2218668,87642.0,87641.0,0.50971796]
[1742940995840,0.2218668,87642.0,87641.0,0.62380606]
[1742940996228,0.22141043,87642.0,87641.0,0.62380606]
[1742940996427,0.22141043,87642.0,87641.0,0.51031796]
[1742940998349,0.22141043,87642.0,87641.0,0.62440606]
[1742940998750,0.22141043,87642.0,87641.0,0.62400606]
[1742940999951,0.22141043,87642.0,87641.0,0.50991796]
[1742941000667,1.15096363,87642.0,87623.0,0.08717281]
[1742941000953,0.8357102,87624.0,87623.0,0.38]
[1742941001145,0.8357102,87624.0,87623.0,0.33]
[1742941001146,0.83735021,87624.0,87623.0,0.33]
[1742941001342,0.83775021,87624.0,87623.0,0.33]
[1742941001650,0.83729375,87624.0,87623.0,0.33]
[1742941001853,0.94349375,87624.0,87623.0,0.33]
[1742941002743,1.06977375,87624.0,87623.0,0.33]
[1742941002959,1.07077375,87624.0,87623.0,0.33]
[1742941003353,1.07957242,87624.0,87623.0,0.33]
[1742941004047,1.07957242,87624.0,87623.0,0.3296]
[1742941004456,1.07077375,87624.0,87623.0,0.3296]
[1742941004654,1.07045375,87624.0,87623.0,0.3296]
[1742941005948,0.94449375,87624.0,87623.0,0.3296]
[1742941006551,0.94403729,87624.0,87623.0,0.3296]
[1742941009148,0.94403729,87624.0,87623.0,0.3292]
[1742941011659,0.94358083,87624.0,87623.0,0.3292]
[1742941014163,0.94358083,87624.0,87623.0,0.3288]
[1742941014963,0.94358083,87624.0,87623.0,0.09]
[1742941015265,0.9523382,87624.0,87623.0,0.09]
[1742941015858,0.95233775,87624.0,87623.0,0.09]
[1742941016170,0.73339693,87624.0,87623.0,0.38032946]
[1742941016470,0.47795021,87624.0,87623.0,0.38032946]
[1742941016669,0.47749375,87624.0,87623.0,0.38032946]
[1742941017354,0.53459375,87624.0,87623.0,0.48882946]
[1742941017560,0.47749375,87624.0,87623.0,0.48882946]
[1742941017755,0.36338355,87624.0,87623.0,0.48882946]
[1742941018276,0.47749375,87624.0,87623.0,0.48882946]
[1742941018869,0.58759375,87624.0,87623.0,0.48882946]
[1742941019060,0.58759375,87624.0,87623.0,0.48842946]
[1742941019365,0.58759375,87624.0,87623.0,0.37431796]
[1742941019565,0.47749375,87624.0,87623.0,0.48842946]
[1742941020367,0.47749375,87624.0,87623.0,0.37431796]
[1742941020558,0.58599375,87624.0,87623.0,0.37431796]
[1742941021062,0.58599375,87624.0,87623.0,0.48842946]
[1742941021653,0.58553729,87624.0,87623.0,0.48842946]
[1742941022253,0.58553729,87624.0,87623.0,0.26581796]
[1742941022672,0.58553729,87624.0,87623.0,0.0896]
[1742941022869,0.59334625,87624.0,87623.0,0.0896]
[1742941023469,0.60210793,87624.0,87623.0,0.0896]
[1742941024064,0.96382085,87624.0,87623.0,0.0892]
[1742941025576,0.96382085,87624.0,87623.0,0.26541796]
[1742941026373,0.95505917,87624.0,87623.0,0.26541796]
[1742941026560,0.95460271,87624.0,87623.0,0.26541796]
[1742941026764,0.95460271,87624.0,87623.0,0.0892]
[1742941027175,1.08969299,87624.0,87623.0,0.0892]
[1742941027863,1.08969299,87624.0,87623.0,0.2033115]
[1742941028064,1.08969299,87624.0,87623.0,0.37952946]
[1742941028372,1.08969299,87624.0,87623.0,0.26541796]
[1742941029275,1.08969299,87624.0,87623.0,0.26501796]
[1742941031277,1.08969299,87624.0,87623.0,0.37912946]
[1742941031480,0.50628279,87624.0,87623.0,0.37912946]
[1742941031675,0.25913653,87624.0,87623.0,0.37912946]
[1742941031872,0.25913653,87624.0,87623.0,0.50412946]
[1742941032268,0.25913653,87624.0,87623.0,2.00412946]
[1742941032470,0.25913653,87624.0,87623.0,0.50412946]
[1742941032782,0.25913653,87624.0,87623.0,0.39001796]
[1742941033276,0.36793653,87624.0,87623.0,0.39001796]
[1742941033581,0.36793653,87624.0,87623.0,0.50412946]
[1742941033983,0.36793653,87624.0,87623.0,0.39001796]
[1742941034179,0.36793653,87624.0,87623.0,0.38961796]
[1742941034476,0.36793653,87624.0,87623.0,0.50372946]
[1742941035382,0.23284625,87624.0,87623.0,0.50372946]
[1742941035582,0.11873605,87624.0,87623.0,0.50372946]
[1742941035771,0.06483605,87624.0,87623.0,0.50372946]
[1742941035972,0.17894625,87624.0,87623.0,0.50372946]
[1742941036481,0.12404625,87624.0,87623.0,0.50372946]
[1742941036682,0.12358979,87624.0,87623.0,0.50372946]
[1742941038976,0.12358979,87624.0,87623.0,0.50332946]
[1742941040072,0.11578083,87624.0,87623.0,0.50332946]
[1742941040267,0.13509028,87630.0,87629.0,0.1141037]
[1742941040472,0.114089,87641.0,87640.0,0.1140881]
[1742941040672,0.114089,87641.0,87640.0,0.6040881]
[1742941040673,0.05590001,87641.0,87640.0,0.6040881]
[1742941040882,0.05590001,87641.0,87640.0,0.78090606]
[1742941041078,0.3608,87647.0,87646.0,0.1140816]
[1742941041284,0.20363181,87653.0,87652.0,0.1140738]
[1742941041477,0.31834431,87653.0,87652.0,0.56930774]
[1742941041678,0.31830432,87653.0,87652.0,0.56930774]
[1742941041885,0.31830432,87653.0,87652.0,0.62180774]
[1742941042187,0.11467251,87653.0,87652.0,0.62180774]
[1742941042383,0.12357343,87653.0,87652.0,0.62180774]
[1742941043790,0.12357343,87653.0,87652.0,0.68461176]
[1742941044091,0.17827343,87653.0,87652.0,0.68461176]
[1742941044284,0.23307343,87653.0,87652.0,0.68461176]
[1742941044481,0.0001711,87661.0,87652.0,0.69053796]
[1742941044680,0.057,87660.0,87652.0,0.51432]
[1742941044984,0.1140725,87655.0,87654.0,0.1140712]
[1742941045179,0.1148725,87655.0,87654.0,0.6048312]
[1742941045381,0.2258725,87655.0,87654.0,0.79045796]
[1742941045587,0.2266325,87655.0,87654.0,0.90452916]
[1742941045787,0.2258725,87655.0,87654.0,0.90452916]
[1742941046288,0.22541621,87655.0,87654.0,0.90452916]
[1742941047279,0.22641621,87655.0,87654.0,0.78304916]
[1742941047478,0.22725621,87655.0,87654.0,0.90624916]
[1742941047679,0.22641621,87655.0,87654.0,0.90624916]
[1742941048491,0.58721621,87655.0,87654.0,0.90624916]
[1742941048704,0.58797621,87655.0,87654.0,0.90624916]
[1742941050598,0.58797621,87655.0,87654.0,0.79217796]
[1742941050782,0.58797621,87655.0,87654.0,0.26276]
[1742941050983,0.114079,87648.0,87647.0,0.00045637]
[1742941051294,0.114759,87648.0,87647.0,0.30105637]
[1742941051897,0.283959,87648.0,87647.0,0.30105637]
[1742941054090,0.284959,87648.0,87647.0,0.30105637]
[1742941056287,0.284959,87648.0,87647.0,0.24105637]
[1742941056490,0.284959,87648.0,87647.0,0.12999025]
[1742941058087,0.284959,87648.0,87647.0,0.12959025]
[1742941060589,0.284959,87648.0,87647.0,0.13004662]
[1742941062398,1.006559,87648.0,87647.0,0.13004662]
[1742941064408,0.284959,87648.0,87647.0,0.13004662]
[1742941064607,1.006559,87648.0,87647.0,0.13004662]
[1742941065496,1.006559,87648.0,87647.0,0.30626458]
[1742941066196,1.006559,87648.0,87647.0,0.30686458]
[1742941066897,0.948959,87648.0,87647.0,0.30686458]
[1742941067096,0.588159,87648.0,87647.0,0.30686458]
[1742941070803,0.476559,87648.0,87647.0,0.42094488]
[1742941070999,0.115759,87648.0,87647.0,0.42094488]
[1742941071213,0.115079,87648.0,87647.0,0.53234488]
[1742941071407,0.001,87648.0,87647.0,0.53234488]
[1742941071608,0.115079,87648.0,87647.0,0.53234488]
[1742941072108,0.11567901,87648.0,87647.0,0.53234488]
[1742941075905,0.11567901,87648.0,87647.0,0.65262488]
[1742941076105,0.00160001,87648.0,87647.0,0.65262488]
[1742941076301,0.001,87648.0,87647.0,0.65262488]
[1742941076905,0.001,87648.0,87647.0,0.53234488]
[1742941077106,0.001,87648.0,87647.0,0.65266488]
[1742941079103,0.001,87648.0,87647.0,0.92266488]
[1742941080213,0.115079,87648.0,87647.0,0.92266488]
[1742941081720,0.001,87648.0,87647.0,0.92266488]
[1742941082822,0.115079,87648.0,87647.0,0.92266488]
[1742941086736,0.001,87648.0,87647.0,0.92266488]
[1742941087333,0.001,87648.0,87647.0,2.42266488]
[1742941090239,0.115079,87648.0,87647.0,2.42138488]
[1742941090541,0.178079,87648.0,87647.0,0.92138488]
[1742941090836,0.178079,87648.0,87647.0,3.24958488]
[1742941091137,0.178079,87648.0,87647.0,3.13054488]
[1742941091324,0.178079,87648.0,87647.0,3.24946488]
[1742941092435,0.239679,87648.0,87647.0,3.24946488]
[1742941093044,0.10154349,87655.0,87654.0,0.1140712]
[1742941093340,0.0570252,87670.0,87669.0,0.1710742]
[1742941093536,0.2287875,87670.0,87669.0,0.57565796]
[1742941093929,0.2287875,87670.0,87669.0,0.68970966]
[1742941094843,0.2287875,87670.0,87669.0,0.69823155]
[1742941095342,0.2297875,87670.0,87669.0,0.69823155]
[1742941095935,0.2297875,87670.0,87669.0,0.5134917]
[1742941096338,0.3515875,87670.0,87669.0,0.5134917]
[1742941097544,0.3515875,87670.0,87669.0,0.39944]
[1742941098843,0.3515875,87670.0,87669.0,0.28068]
[1742941102238,0.0570309,87662.0,87652.0,0.11792]
[1742941102443,0.12348,87670.0,87652.0,0.11792]
[1742941102444,0.8356686,87656.0,87655.0,0.3506]
[1742941102644,0.8364686,87656.0,87655.0,0.2506]
[1742941102846,0.1140712,87654.0,87653.0,8e-05]
[1742941103042,0.1149112,87654.0,87653.0,0.21064]
[1742941103242,0.1149112,87654.0,87653.0,0.21]
[1742941103651,0.1139112,87654.0,87653.0,0.21]
[1742941104346,0.1149112,87654.0,87653.0,0.211]
[1742941105638,0.1149112,87654.0,87653.0,0.22566548]
[1742941106040,0.1787112,87654.0,87653.0,0.22566548]
[1742941106655,0.23416167,87654.0,87653.0,0.211]
[1742941109645,0.23416167,87654.0,87653.0,0.2116]
[1742941111056,0.34791408,87654.0,87653.0,0.2116]
[1742941111253,0.34791408,87654.0,87653.0,0.211]
[1742941111556,0.34791408,87654.0,87653.0,0.22632538]
[1742941111757,0.34791408,87654.0,87653.0,0.22692538]
[1742941111941,0.34791408,87654.0,87653.0,0.2116]
[1742941112646,0.34791408,87654.0,87653.0,0.2416309]
[1742941112846,0.34791408,87654.0,87653.0,0.24163102]
[1742941113153,0.34791408,87654.0,87653.0,0.2416299]
[1742941113758,0.34791408,87654.0,87653.0,0.41787273]
[1742941114250,0.34791408,87654.0,87653.0,0.40248075]
[1742941114455,0.34791408,87654.0,87653.0,0.41787245]
[1742941115355,0.34791408,87654.0,87653.0,0.24165449]
[1742941115955,0.1787112,87654.0,87653.0,0.24165449]
[1742941116155,0.1787112,87654.0,87653.0,0.24155908]
[1742941116861,0.1787112,87654.0,87653.0,0.24210218]
[1742941117248,0.1787112,87654.0,87653.0,0.22743939]
[1742941117449,0.1787112,87654.0,87653.0,0.22743493]
[1742941118156,0.2440112,87654.0,87653.0,0.22743493]
[1742941118462,0.2440112,87654.0,87653.0,0.2116]
[1742941118662,0.2440112,87654.0,87653.0,0.22741886]
[1742941120462,0.3793257,87654.0,87653.0,0.22741886]
[1742941121553,0.3793257,87654.0,87653.0,0.22743968]
[1742941122163,0.3793257,87654.0,87653.0,0.22683968]
[1742941123063,0.3793257,87654.0,87653.0,0.22683938]
[1742941123955,0.2440112,87654.0,87653.0,0.22683938]
[1742941124854,0.2440112,87654.0,87653.0,0.29073938]
[1742941125559,0.2440112,87654.0,87653.0,0.29137938]
[1742941125764,0.2440112,87654.0,87653.0,0.18457178]
[1742941125964,0.0570382,87650.0,87647.0,0.00045637]
[1742941126171,0.474879,87648.0,87647.0,0.24045637]
[1742941126358,0.475679,87648.0,87647.0,0.25689911]
[1742941126668,0.596479,87648.0,87647.0,0.25689911]
[1742941127869,0.597479,87648.0,87647.0,0.25689911]
[1742941128172,0.597479,87648.0,87647.0,0.25725805]
[1742941128371,0.597479,87648.0,87647.0,0.27203841]
[1742941128562,0.597479,87648.0,87647.0,0.25583673]
[1742941128764,0.597479,87648.0,87647.0,0.27200228]
[1742941129466,0.597479,87648.0,87647.0,0.27200527]
[1742941129664,0.597479,87648.0,87647.0,0.25583673]
[1742941129863,0.597479,87648.0,87647.0,0.27215212]
[1742941130668,0.476679,87648.0,87647.0,0.27215212]
[1742941131156,0.476679,87648.0,87647.0,0.47447516]
[1742941131959,0.476679,87648.0,87647.0,0.47435796]
[1742941132373,0.476679,87648.0,87647.0,0.47437229]
[1742941136274,0.476679,87648.0,87647.0,0.47441537]
[1742941137066,0.476679,87648.0,87647.0,0.47443924]
[1742941137267,0.539179,87648.0,87647.0,0.47443924]
[1742941137474,0.602679,87648.0,87647.0,0.47443976]
[1742941140476,0.602679,87648.0,87647.0,0.49893902]
[1742941142487,0.602679,87648.0,87647.0,0.43205469]
[1742941142674,0.602679,87648.0,87647.0,0.47597586]
[1742941143067,0.602679,87648.0,87647.0,0.47612831]
[1742941143980,0.602679,87648.0,87647.0,0.5006008]
[1742941144178,0.476679,87648.0,87647.0,0.5006008]
[1742941144976,0.476679,87648.0,87647.0,0.53476707]
[1742941147679,0.539079,87648.0,87647.0,0.5006008]
[1742941148183,0.603579,87648.0,87647.0,0.5006008]
[1742941148681,0.603579,87648.0,87647.0,0.29991035]
[1742941148883,0.666979,87648.0,87647.0,0.29991035]
[1742941149887,0.666979,87648.0,87647.0,0.29916472]
[1742941151589,0.72243357,87648.0,87647.0,0.29916472]
[1742941153075,0.72243357,87648.0,87647.0,0.36126472]
[1742941153677,0.72243357,87648.0,87647.0,0.44793892]
[1742941153878,0.72243357,87648.0,87647.0,0.42127554]
[1742941154078,0.72243357,87648.0,87647.0,0.44774683]
[1742941154276,0.72243357,87648.0,87647.0,0.32394683]
[1742941155885,0.72243357,87648.0,87647.0,0.38604683]
[1742941156685,0.72243357,87648.0,87647.0,0.29747554]
[1742941156993,0.72243357,87648.0,87647.0,0.29687554]
[1742941157695,0.72243357,87648.0,87647.0,0.29666667]
[1742941163694,0.72243357,87648.0,87647.0,0.20524707]
[1742941163899,0.72243357,87648.0,87647.0,0.16527687]
[1742941164098,0.72243357,87648.0,87647.0,0.1652882]
[1742941165101,1.13003357,87648.0,87647.0,0.14882113]
[1742941165899,1.13003357,87648.0,87647.0,0.14842113]
[1742941168202,1.13003357,87648.0,87647.0,0.1488775]
[1742941169202,1.13003357,87648.0,87647.0,0.16552597]
[1742941169696,1.28003357,87648.0,87647.0,0.05258678]
[1742941169903,1.22299467,87648.0,87644.0,8e-08]
[1742941170204,0.1140829,87645.0,87644.0,8e-08]
[1742941170496,0.2306429,87645.0,87644.0,8e-08]
[1742941170697,0.2306429,87645.0,87635.0,0.0675]
[1742941170698,0.0570453,87639.0,87635.0,0.0675]
[1742941171002,0.4748946,87636.0,87635.0,0.33818]
[1742941171301,0.4756946,87636.0,87635.0,0.27068]
[1742941171798,0.4756946,87636.0,87635.0,0.33488]
[1742941172605,0.4869273,87636.0,87635.0,0.33488]
[1742941172994,0.4869273,87636.0,87635.0,0.1307649]
[1742941173191,0.4869273,87636.0,87635.0,0.1300849]
[1742941173401,0.4869273,87636.0,87635.0,0.1307649]
[1742941174396,0.4879273,87636.0,87635.0,0.1307649]
[1742941174597,0.65874187,87636.0,87635.0,0.1307649]
[1742941175795,1.01954187,87636.0,87635.0,0.1307649]
[1742941175997,1.01954187,87636.0,87635.0,0.1300849]
[1742941177403,1.14844187,87636.0,87635.0,0.1300849]
[1742941180695,1.14844187,87636.0,87635.0,0.15499817]
[1742941181011,1.14844187,87636.0,87635.0,0.15559817]
[1742941181906,1.14844187,87636.0,87635.0,0.17213685]
[1742941182915,1.14844187,87636.0,87635.0,0.17213255]
[1742941183096,1.14844187,87636.0,87635.0,0.18757799]
[1742941185919,1.14844187,87636.0,87635.0,0.04013889]
[1742941186210,0.1140985,87633.0,87632.0,0.1956]
[1742941186406,0.1151785,87633.0,87632.0,0.3456]
[1742941186710,0.1151785,87633.0,87632.0,0.3462]
[1742941186711,0.2427785,87633.0,87632.0,0.3462]
[1742941187610,0.2437785,87633.0,87632.0,0.3462]
[1742941189011,0.1161785,87633.0,87632.0,0.3462]
[1742941189308,0.2305385,87633.0,87632.0,0.3462]
[1742941189509,0.1161785,87633.0,87632.0,0.3462]
[1742941190008,0.1832785,87633.0,87632.0,0.3462]
[1742941190704,0.2447785,87633.0,87632.0,0.3462]
[1742941191303,0.2447785,87633.0,87632.0,0.3456]
[1742941191513,0.30023307,87633.0,87632.0,0.3456]
[1742941195825,0.50398563,87633.0,87632.0,0.3456]
[1742941196513,0.50398563,87633.0,87632.0,0.37065912]
[1742941196922,0.61790563,87633.0,87632.0,0.37065912]
[1742941197112,0.61790563,87633.0,87632.0,0.30825912]
[1742941197419,0.61790563,87633.0,87632.0,0.37195912]
[1742941198107,0.61790563,87633.0,87632.0,0.38911153]
[1742941198922,0.61790563,87633.0,87632.0,0.40529231]
[1742941199817,1.33950563,87633.0,87632.0,0.43382305]
[1742941200120,1.33950563,87633.0,87632.0,0.43446305]
[1742941200617,1.33950563,87633.0,87632.0,0.37076305]
[1742941200920,1.13575307,87633.0,87632.0,0.37046828]
[1742941201107,1.13575307,87633.0,87618.0,0.21]
[1742941201108,1.17165457,87633.0,87602.0,0.0178162]
[1742941201423,0.1141285,87610.0,87609.0,0.0652]
[1742941201612,0.8357285,87610.0,87609.0,0.51141796]
[1742941201813,0.9507285,87610.0,87609.0,0.51205796]
[1742941202121,0.8370085,87610.0,87609.0,0.57315796]
[1742941202541,0.8370085,87610.0,87609.0,0.57275796]
[1742941203207,0.8481907,87610.0,87609.0,0.57275796]
[1742941204520,0.8481907,87610.0,87609.0,2.07275796]
[1742941204722,0.8491907,87610.0,87609.0,2.07275796]
[1742941204921,0.90464527,87610.0,87609.0,2.07275796]
[1742941205110,0.90418873,87610.0,87609.0,2.07275796]
[1742941205924,0.90418873,87610.0,87609.0,0.57275796]
[1742941207625,0.90418873,87610.0,87609.0,0.57235796]
[1742941208016,0.90418873,87610.0,87609.0,2.07235796]
[1742941210023,0.90373219,87610.0,87609.0,2.07235796]
[1742941210222,0.79051677,87610.0,87609.0,2.07235796]
[1742941210425,0.42971677,87610.0,87609.0,2.18648776]
[1742941210633,0.54384527,87610.0,87609.0,2.07235796]
[1742941210938,0.54384527,87610.0,87609.0,2.18648776]
[1742941211228,0.54384527,87610.0,87609.0,2.27829986]
[1742941211417,0.4883907,87610.0,87609.0,2.27829986]
[1742941211818,0.4883907,87610.0,87609.0,2.30273043]
[1742941212422,0.4883907,87610.0,87609.0,2.30233043]
[1742941212828,0.4883907,87610.0,87609.0,2.27691833]
[1742941213130,0.4883907,87610.0,87609.0,2.55797792]
[1742941213722,0.4883907,87610.0,87609.0,2.57328568]
[1742941214732,0.4883907,87610.0,87609.0,2.54885511]
[1742941214920,0.48793416,87610.0,87609.0,2.54897929]
[1742941216023,0.48789417,87610.0,87609.0,2.54897929]
[1742941217223,0.48789417,87610.0,87609.0,2.54901722]
[1742941217430,0.48789417,87610.0,87609.0,2.54861722]
[1742941217936,0.36258347,87610.0,87609.0,2.54861722]
[1742941218138,0.17135019,87618.0,87617.0,0.1141194]
[1742941218330,0.17227019,87618.0,87617.0,1.08174682]
[1742941218725,0.17227019,87618.0,87617.0,2.58174682]
[1742941218925,0.17227019,87618.0,87617.0,2.46834682]
[1742941219123,0.17135019,87618.0,87617.0,2.58178682]
[1742941219434,0.17235019,87618.0,87617.0,2.58178682]
[1742941219630,0.1732302,87618.0,87617.0,2.70338682]
[1742941219934,0.34207642,87618.0,87617.0,1.20338682]
[1742941220122,0.34291642,87618.0,87617.0,1.20338682]
[1742941220321,0.34291642,87618.0,87617.0,2.70338682]
[1742941220519,0.34207642,87618.0,87617.0,2.70338682]
[1742941221333,0.34207642,87618.0,87617.0,1.20338682]
[1742941221633,0.34291642,87618.0,87617.0,1.08994682]
[1742941221937,0.34291642,87618.0,87617.0,1.20326682]
[1742941222239,0.34207642,87618.0,87617.0,1.20326682]
[1742941222535,0.34291642,87618.0,87617.0,1.20326682]
[1742941222930,0.34207642,87618.0,87617.0,1.20326682]
[1742941223827,0.30109019,87618.0,87617.0,1.17789962]
[1742941226033,0.30109019,87618.0,87617.0,1.16259186]
[1742941229623,0.30109019,87618.0,87617.0,2.54847246]
[1742941230231,0.30109019,87618.0,87617.0,0.45275246]
[1742941230532,0.30109019,87618.0,87617.0,0.27573625]
[1742941230729,0.30109019,87618.0,87617.0,0.26068]
[1742941231121,0.18697039,87618.0,87615.0,0.00045654]
[1742941231321,0.18697039,87618.0,87601.0,0.41]
[1742941231322,0.1141389,87602.0,87601.0,0.41]
[1742941231525,0.1141389,87602.0,87601.0,0.27068]
[1742941231722,0.11517891,87602.0,87601.0,0.46197706]
[1742941232037,0.11517891,87602.0,87601.0,0.4766162]
[1742941232232,0.24387891,87602.0,87601.0,0.30039824]
[1742941233331,0.24387891,87602.0,87601.0,0.28531914]
[1742941233534,0.24387891,87602.0,87601.0,0.3005114]
[1742941234540,0.24487891,87602.0,87601.0,0.3005114]
[1742941235241,0.24487891,87602.0,87601.0,0.30051557]
[1742941236537,0.24487891,87602.0,87601.0,0.28531914]
[1742941237035,0.24487891,87602.0,87601.0,0.34971914]
[1742941237336,0.24487891,87602.0,87601.0,0.28531914]
[1742941237535,0.24487891,87602.0,87601.0,0.34971914]
[1742941239039,0.24387891,87602.0,87601.0,0.34971914]
[1742941239233,0.24487891,87602.0,87601.0,0.28531914]
[1742941242424,0.24487891,87602.0,87601.0,0.27068]
[1742941244535,0.24487891,87602.0,87600.0,0.02143296]
[1742941244536,0.1141402,87601.0,87600.0,0.02143296]
[1742941244731,0.11538021,87601.0,87600.0,0.25143296]
[1742941245041,0.24968021,87601.0,87600.0,0.25143296]
[1742941245340,0.24968021,87601.0,87600.0,0.13143296]
[1742941245927,0.25068021,87601.0,87600.0,0.14617146]
[1742941251036,0.30616629,87601.0,87600.0,0.14617146]
[1742941251742,0.30616629,87601.0,87600.0,0.0147385]
[1742941251942,0.1141571,87588.0,87587.0,0.1335]
[1742941252140,0.11539711,87588.0,87587.0,0.5835]
[1742941252341,0.11539711,87588.0,87587.0,0.75971796]
[1742941252544,0.11539711,87588.0,87587.0,0.76031796]
[1742941253747,0.12675335,87588.0,87587.0,0.76031796]
[1742941254342,0.12775335,87588.0,87587.0,0.77573464]
[1742941254738,0.12775335,87588.0,87587.0,0.76031796]
[1742941255443,0.19305335,87588.0,87587.0,0.76031796]
[1742941256345,0.19305335,87588.0,87587.0,0.77574174]
[1742941257549,0.19305335,87588.0,87587.0,0.77574688]
[1742941259139,0.12775335,87588.0,87587.0,0.77574688]
[1742941260942,0.12775335,87588.0,87587.0,0.77576846]
[1742941261643,0.12775335,87588.0,87587.0,0.76031796]
[1742941263451,0.29753303,87588.0,87587.0,0.76031796]
[1742941263854,0.18337593,87588.0,87587.0,0.87447636]
[1742941264052,0.0004,87592.0,87591.0,0.1141532]
[1742941264350,0.1725511,87592.0,87591.0,0.97371116]
[1742941264550,0.18469698,87592.0,87591.0,1.06429116]
[1742941264751,0.01254588,87592.0,87591.0,1.06429116]
[1742941265050,0.01166587,87592.0,87591.0,1.06429116]
[1742941265255,0.12581777,87592.0,87591.0,1.06429116]
[1742941265552,0.12669778,87592.0,87591.0,0.97123796]
[1742941266455,0.12769778,87592.0,87591.0,0.97223796]
[1742941266951,0.12769778,87592.0,87591.0,1.08639116]
[1742941267566,0.12769778,87592.0,87591.0,0.97223796]
[1742941267854,0.12769778,87592.0,87591.0,0.86055796]
[1742941268042,0.12777778,87592.0,87591.0,0.86055796]
[1742941268445,0.26277778,87592.0,87591.0,0.86055796]
[1742941270152,0.26277778,87592.0,87591.0,0.48164]
[1742941270354,0.33227778,87592.0,87591.0,0.48164]
[1742941270561,0.33227778,87592.0,87591.0,0.61054]
[1742941271157,0.33227778,87592.0,87591.0,0.48164]
[1742941271752,0.33127778,87592.0,87591.0,0.48064]
[1742941271956,0.33227778,87592.0,87591.0,0.48164]
[1742941272141,0.26277778,87592.0,87591.0,0.48164]
[1742941272547,0.26277778,87592.0,87591.0,0.61654]
[1742941274146,0.26277778,87592.0,87591.0,0.61554]
[1742941274344,0.26277778,87592.0,87591.0,0.63208078]
[1742941275358,0.26277778,87592.0,87591.0,0.63189991]
[1742941275551,0.26277778,87592.0,87591.0,0.64665927]
[1742941275958,0.31826406,87592.0,87591.0,0.64665927]
[1742941278061,0.38766406,87592.0,87591.0,0.64665927]
[1742941278444,0.38766406,87592.0,87591.0,0.57725927]
[1742941279652,0.38766406,87592.0,87591.0,0.45903397]
[1742941279856,0.49930406,87592.0,87591.0,0.26029813]
[1742941280050,0.0570876,87575.0,87567.0,0.00045679]
[1742941280256,0.474978,87572.0,87571.0,0.45573267]
[1742941280559,0.47601801,87572.0,87571.0,0.47111022]
[1742941280762,0.47601801,87572.0,87571.0,0.31633037]
[1742941281261,0.47601801,87572.0,87560.0,0.34512068]
[1742941281262,0.51184001,87572.0,87566.0,0.16252761]
[1742941281453,0.4749845,87567.0,87566.0,0.16320761]